[Event "EIWCC 2017"]
[Site "Riga"]
[Date "2017.04.11"]
[Round "1"]
[White "Savina, Anastasia"]
[Black "Hapala, Elisabeth"]
[Result "1-0"]
[ECO "D17"]
[WhiteElo "2378"]
[BlackElo "2091"]
[Annotator "NA"]
[PlyCount "97"]
[EventDate "2017.??.??"]
[EventType "swiss"]
[EventCountry "LAT"]
[SourceTitle "playchess.com"]
[Source "ChessBase"]
[SourceQuality "1"]
[TimeControl "40/5400+30:1800+30"]

1. d4 {[%emt 0:00:00]} d5 {[%emt 0:00:05]} 2. c4 {[%emt 0:00:00]} c6 {[%emt 0:00:03]} 3. Nf3 {[%emt 0:00:00]} Nf6 {[%emt 0:00:03]} 4. Nc3 {[%emt 0:00:04]} dxc4 {[%emt 0:00:10]} 5. a4 {[%emt 0:00:12]} Bf5 {[%emt 0:00:09]} 6. Ne5 {[%emt 0:00:20]} Nbd7 {[%emt 0:00:33]} 7. Nxc4 {[%emt 0:00:07]} Nb6 {[%emt 0:00:14]} 8. Ne5 {[%emt 0:00:07]} a5 {[%emt 0:00:08]} 9. Bg5 {[%emt 0:00:47]} g6 {[%emt 0:04:20]} 10. e3 {[%emt 0:02:00]} Bg7 {[%emt 0:00:28]} 11. Bd3 {[%emt 0:00:12]} Be6 {[%emt 0:14:54] LiveBook: 21 Games} 12. Be2 {[%emt 0:01:35]} O-O {[%emt 0:12:20]} 13. O-O {[%emt 0:02:03]} Nfd5 {[%emt 0:07:53]} 14. Nd3 $14 {[%emt 0:07:29]} f6 {[%emt 0:17:06]} 15. Bh4 {[%emt 0:03:03]} Bf7 {[%emt 0:00:39]} 16. Ne4 {[%emt 0:20:32]} Nd7 {[%emt 0:03:46]} 17. Rc1 {[%emt 0:04:51]} Qb6 {[%emt 0:02:33]} 18. Nd2 {[%emt 0:05:20]} e5 {[%emt 0:16:03]} 19. Nc4 {[%emt 0:14:36]} Qc7 {[%emt 0:00:12]} 20. e4 {[%emt 0:05:19]} N5b6 {[%emt 0:05:27]} 21. Nxb6 {[%emt 0:14:37]} Qxb6 {[%emt 0:00:12]} 22. dxe5 {[%emt 0:00:14]} Nxe5 {[%emt 0:00:37]} 23. Nxe5 {[%emt 0:07:27]} fxe5 {[%emt 0:00:02]} 24. Qc2 {[%emt 0:00:52]} Kh8 {[%emt 0:02:55]} 25. Be7 {[%emt 0:02:45]} Rfe8 {[%emt 0:00:04]} 26. Bc5 {[%emt 0:00:05]} Qc7 {[%emt 0:03:56]} 27. Bc4 {[%emt 0:03:57]} Bxc4 {[%emt 0:00:48]} 28. Qxc4 {[%emt 0:00:01]} Bf8 {[%emt 0:02:59]} 29. Be3 {[%emt 0:00:53]} Rad8 {[%emt 0:01:04]} 30. h3 {[%emt 0:04:49]} Rd7 {[%emt 0:02:32]} 31. Qb3 {[%emt 0:00:34]} Bb4 {[%emt 0:00:14]} 32. Rcd1 {[%emt 0:00:23]} Red8 {[%emt 0:01:53]} 33. Bg5 {[%emt 0:00:40]} Be7 {[%emt 0:01:59]} 34. Bxe7 {[%emt 0:00:27]} Rxe7 {[%emt 0:00:04]} 35. Rxd8+ {[%emt 0:00:32]} Qxd8 {[%emt 0:00:01]} 36. Rd1 {[%emt 0:00:06]} Rd7 {[%emt 0:00:14]} 37. Rxd7 {[%emt 0:00:45]} Qxd7 {[%emt 0:00:01]} 38. Qc3 {[%emt 0:00:44]} Qd1+ {[%emt 0:02:07]} 39. Kh2 {[%emt 0:00:01]} Qd4 {[%emt 0:00:31]} 40. Qxa5 {[%emt 0:00:00]} Qxe4 {[%emt 0:00:32]} 41. Qa8+ {[%emt 0:08:20]} Kg7 {[%emt 0:00:04]} 42. Qxb7+ {[%emt 0:00:04]} Kh6 {[%emt 0:05:10]} 43. Qa7 {[%emt 0:04:15]} Qd5 {[%emt 0:12:06]} 44. Qe7 {[%emt 0:09:14]} Qd4 {[%emt 0:04:58]} 45. Qf8+ {[%emt 0:00:59]} Kg5 {[%emt 0:00:44]} 46. b4 {[%emt 0:00:37]} h5 {[%emt 0:04:26]} 47. g3 {[%emt 0:01:44]} Qd2 {[%emt 0:03:36]} 48. h4+ {[%emt 0:01:21]} Kg4 {[%emt 0:00:09]} 49. Kg2 {[%emt 0:00:20]} 1-0

[Event "EIWCC 2017"]
[Site "Riga"]
[Date "2017.04.11"]
[Round "1"]
[White "Vidruska, Renate"]
[Black "Charochkina, Daria"]
[Result "0-1"]
[ECO "B18"]
[WhiteElo "2093"]
[BlackElo "2381"]
[Annotator "NA"]
[PlyCount "58"]
[EventDate "2017.??.??"]
[EventType "swiss"]
[EventCountry "LAT"]
[SourceTitle "playchess.com"]
[Source "ChessBase"]
[SourceQuality "1"]
[TimeControl "40/5400+30:1800+30"]

1. e4 {[%emt 0:00:00]} c6 {[%emt 0:00:15]} 2. d4 {[%emt 0:00:10]} d5 {[%emt 0:00:06]} 3. Nc3 {[%emt 0:00:25]} dxe4 {[%emt 0:00:07]} 4. Nxe4 {[%emt 0:00:07]} Bf5 {[%emt 0:00:08]} 5. Ng3 {[%emt 0:00:08]} Bg6 {[%emt 0:00:08]} 6. Bc4 {[%emt 0:00:51]} e6 {[%emt 0:01:45]} 7. N1e2 {[%emt 0:01:45]} Nf6 {[%emt 0:00:13]} 8. O-O {[%emt 0:05:23]} Bd6 {[%emt 0:01:22]} 9. f4 {[%emt 0:11:46]} Bf5 {[%emt 0:09:42]} 10. Bd3 {[%emt 0:03:46]} g6 {[%emt 0:03:05]} 11. c3 {[%emt 0:12:11]} Nbd7 {[%emt 0:04:53]} 12. Qc2 {[%emt 0:10:30]} O-O {[%emt 0:01:05]} 13. Ne4 {[%emt 0:01:02]} Nxe4 {[%emt 0:06:13]} 14. Bxe4 {[%emt 0:00:18]} Nf6 {[%emt 0:00:10]} 15. Ng3 {[%emt 0:09:58]} Nxe4 {[%emt 0:00:15]} 16. Nxe4 {[%emt 0:00:02]} c5 {[%emt 0:03:36]} 17. Qe2 {[%emt 0:11:11]} cxd4 {[%emt 0:31:42]} 18. cxd4 {[%emt 0:07:43]} Rc8 $15 {[%emt 0:00:32]} 19. Nf2 {[%emt 0:12:28]} Qb6 {[%emt 0:07:06]} 20. Be3 {[%emt 0:03:37]} Rc2 {[%emt 0:00:21]} 21. Qf3 {[%emt 0:00:02]} Rxb2 {[%emt 0:01:14]} 22. d5 {[%emt 0:04:22]} Bc5 {[%emt 0:00:35]} 23. Bxc5 {[%emt 0:00:16]} Qxc5 {[%emt 0:00:05]} 24. dxe6 {[%emt 0:00:11]} Bxe6 {[%emt 0:02:44]} 25. Rac1 {[%emt 0:01:20]} Qb6 {[%emt 0:00:25]} 26. a4 {[%emt 0:01:15]} Rd8 {[%emt 0:07:37]} 27. Rcd1 {[%emt 0:00:08]} Rxd1 {[%emt 0:01:28]} 28. Rxd1 {[%emt 0:00:03]} Bb3 {[%emt 0:00:36]} 29. a5 {[%emt 0:01:48]} Bxd1 {[%emt 0:00:24]} 0-1

[Event "EIWCC 2017"]
[Site "Riga"]
[Date "2017.04.12"]
[Round "2"]
[White "Gaponenko, Inna"]
[Black "Movileanu, Daniela"]
[Result "1/2-1/2"]
[ECO "B35"]
[WhiteElo "2416"]
[BlackElo "2213"]
[Annotator "ChessBase"]
[PlyCount "87"]
[EventDate "2017.??.??"]
[EventType "swiss"]
[EventCountry "LAT"]
[SourceTitle "playchess.com"]
[Source "ChessBase"]
[SourceQuality "1"]
[TimeControl "40/5400+30:1800+30"]

1. e4 {[%emt 0:00:00]} c5 {[%emt 0:00:11]} 2. Ne2 {[%emt 0:00:00]} g6 {[%emt 0:00:28]} 3. d4 {[%emt 0:00:00]} cxd4 {[%emt 0:00:19]} 4. Nxd4 {[%emt 0:00:08]} Nc6 {[%emt 0:00:20]} 5. Nc3 {[%emt 0:00:14]} Bg7 {[%emt 0:00:19]} 6. Be3 {[%emt 0:00:06]} Nf6 {[%emt 0:00:32]} 7. Bc4 {[%emt 0:00:10]} O-O {[%emt 0:00:25]} 8. Bb3 {[%emt 0:00:15]} a5 {[%emt 0:00:35]} 9. f3 {[%emt 0:01:46]} d5 {[%emt 0:01:47]} 10. Bxd5 {[%emt 0:01:21]} Nxd5 {[%emt 0:00:41]} 11. exd5 {[%emt 0:00:05]} Nb4 {[%emt 0:00:30]} 12. Nde2 {[%emt 0:00:07]} e6 {[%emt 0:01:40]} 13. O-O {[%emt 0:00:41]} Nxd5 {[%emt 0:00:42]} 14. Nxd5 {[%emt 0:00:06]} Qxd5 {[%emt 0:01:24]} 15. Qxd5 {[%emt 0:00:24]} exd5 {[%emt 0:00:06]} 16. c3 {[%emt 0:15:01]} Re8 {[%emt 0:07:48]} 17. Kf2 {[%emt 0:01:43]} b5 {[%emt 0:03:00]} 18. Bd4 {[%emt 0:25:42]} Bh6 {[%emt 0:13:31]} 19. g3 {[%emt 0:05:35]} b4 {[%emt 0:05:25]} 20. Nf4 {[%emt 0:01:23]} Bxf4 {[%emt 0:07:43]} 21. gxf4 {[%emt 0:00:01]} Bf5 {[%emt 0:00:29]} 22. Rfe1 {[%emt 0:16:20]} Re6 {[%emt 0:12:06]} 23. Rxe6 {[%emt 0:20:33]} fxe6 {[%emt 0:01:19]} 24. cxb4 {[%emt 0:00:12]} axb4 {[%emt 0:00:19]} 25. Rc1 {[%emt 0:00:36]} h5 {[%emt 0:12:53]} 26. h4 {[%emt 0:00:35]} Rxa2 {[%emt 0:02:09]} 27. Rc8+ {[%emt 0:04:19]} Kf7 {[%emt 0:00:10]} 28. Rc7+ {[%emt 0:00:49]} Ke8 {[%emt 0:01:12]} 29. Rb7 {[%emt 0:00:05]} Ra1 {[%emt 0:07:49]} 30. Be5 {[%emt 0:03:01]} b3 {[%emt 0:06:27]} 31. Rxb3 {[%emt 0:00:57]} Kd7 {[%emt 0:00:25]} 32. Rb6 {[%emt 0:00:14]} Rb1 {[%emt 0:01:43]} 33. b4 {[%emt 0:02:21]} Rb3 {[%emt 0:04:46]} 34. b5 {[%emt 0:00:30]} Bd3 {[%emt 0:00:45]} 35. Rb7+ {[%emt 0:00:47]} Kc8 {[%emt 0:00:17]} 36. Rb8+ {[%emt 0:00:30]} Kd7 {[%emt 0:00:11]} 37. Rb7+ {[%emt 0:00:43]} Kc8 {[%emt 0:00:09]} 38. Rb8+ {[%emt 0:00:05]} Kd7 {[%emt 0:00:04]} 39. b6 {[%emt 0:01:06]} Ba6 {[%emt 0:01:51]} 40. Bd4 {[%emt 0:00:00]} Rb4 {[%emt 0:01:18]} 41. Ke3 {[%emt 0:01:24]} Rb3+ {[%emt 0:03:46]} 42. Kf2 {[%emt 0:00:05]} Rb4 {[%emt 0:00:20]} 43. Ke3 {[%emt 0:02:45]} Rb3+ {[%emt 0:00:46]} 44. Kf2 {[%emt 0:00:04]} 1/2-1/2

[Event "EIWCC 2017"]
[Site "Riga"]
[Date "2017.04.12"]
[Round "2"]
[White "Vega Gutierrez, Sabrina"]
[Black "Isgandarova, Khayala"]
[Result "0-1"]
[ECO "C13"]
[WhiteElo "2413"]
[BlackElo "2211"]
[Annotator "ChessBase"]
[PlyCount "86"]
[EventDate "2017.??.??"]
[EventType "swiss"]
[EventCountry "LAT"]
[SourceTitle "playchess.com"]
[Source "ChessBase"]
[SourceQuality "1"]
[TimeControl "40/5400+30:1800+30"]

1. e4 {[%emt 0:00:00]} e6 {[%emt 0:00:14]} 2. d4 {[%emt 0:00:00]} d5 {[%emt 0:00:08]} 3. Nc3 {[%emt 0:00:00]} Nf6 {[%emt 0:00:08]} 4. Bg5 {[%emt 0:00:05]} Be7 {[%emt 0:00:05]} 5. e5 {[%emt 0:00:12]} Nfd7 {[%emt 0:00:05]} 6. h4 {[%emt 0:00:13]} h6 {[%emt 0:07:09]} 7. Bxe7 {[%emt 0:00:17]} Qxe7 {[%emt 0:00:03]} 8. Qg4 {[%emt 0:03:13]} O-O {[%emt 0:03:23]} 9. Nf3 {[%emt 0:11:59]} c5 {[%emt 0:03:58]} 10. dxc5 {[%emt 0:12:10]} Qxc5 {[%emt 0:22:48]} 11. Bd3 {[%emt 0:17:08]} Nc6 {[%emt 0:00:54]} 12. Qg3 {[%emt 0:03:23]} d4 {[%emt 0:16:54]} 13. Ne4 {[%emt 0:00:30]} Qa5+ {[%emt 0:00:07]} 14. Kf1 {[%emt 0:13:08]} Ncxe5 {[%emt 0:07:52]} 15. Nxd4 {[%emt 0:00:27]} Qd5 {[%emt 0:03:30]} 16. Nb5 {[%emt 0:02:55]} Nxd3 {[%emt 0:04:43]} 17. Qxd3 {[%emt 0:12:45]} Qxd3+ {[%emt 0:07:06]} 18. cxd3 {[%emt 0:00:02]} Rd8 {[%emt 0:03:32]} 19. f4 {[%emt 0:04:21]} a6 {[%emt 0:03:34]} 20. Nbc3 {[%emt 0:02:10]} e5 {[%emt 0:00:33]} 21. g3 {[%emt 0:08:15]} exf4 {[%emt 0:05:58]} 22. gxf4 {[%emt 0:00:02]} Nf8 {[%emt 0:00:05]} 23. Ke2 {[%emt 0:00:49]} Bg4+ {[%emt 0:02:24]} 24. Ke3 {[%emt 0:00:44]} f5 {[%emt 0:00:35]} 25. Nf2 {[%emt 0:01:31]} Re8+ {[%emt 0:00:10]} 26. Kd2 {[%emt 0:00:45]} Bh5 {[%emt 0:00:05]} 27. Nfd1 {[%emt 0:02:54]} Ng6 {[%emt 0:05:50]} 28. Ne3 {[%emt 0:00:03]} Nxf4 {[%emt 0:00:07]} 29. Raf1 {[%emt 0:00:47]} Ne6 {[%emt 0:01:35]} 30. Rxf5 {[%emt 0:00:37]} Bg6 {[%emt 0:00:15]} 31. Re5 {[%emt 0:02:38]} Nf4 {[%emt 0:00:42]} 32. Rxe8+ {[%emt 0:00:07]} Rxe8 {[%emt 0:00:11]} 33. Ncd5 {[%emt 0:00:44]} Nxd3 {[%emt 0:00:53]} 34. Rg1 {[%emt 0:01:30]} Ne5 {[%emt 0:00:03]} 35. Kc3 {[%emt 0:00:35]} Kh7 {[%emt 0:00:54]} 36. Nf4 {[%emt 0:00:28]} Nf3 {[%emt 0:00:46]} 37. Rxg6 {[%emt 0:00:18]} Rxe3+ {[%emt 0:00:02]} 38. Kc2 {[%emt 0:00:34]} Re4 {[%emt 0:00:09]} 39. Rb6 {[%emt 0:00:40]} Rxf4 {[%emt 0:00:09]} 40. Rxb7 {[%emt 0:00:01]} Nxh4 {[%emt 0:30:41]} 41. Ra7 {[%emt 0:30:18]} Rf6 {[%emt 0:00:09]} 42. b4 {[%emt 0:00:24]} Nf5 {[%emt 0:00:13]} 43. a4 {[%emt 0:00:03]} h5 {[%emt 0:00:25]} 0-1

[Event "EIWCC 2017"]
[Site "Riga"]
[Date "2017.04.12"]
[Round "2"]
[White "Melia, Salome"]
[Black "Paramzina, Anastasya"]
[Result "1-0"]
[ECO "B52"]
[WhiteElo "2400"]
[BlackElo "2202"]
[Annotator "ChessBase"]
[PlyCount "63"]
[EventDate "2017.??.??"]
[EventType "swiss"]
[EventCountry "LAT"]
[SourceTitle "playchess.com"]
[Source "ChessBase"]
[SourceQuality "1"]
[TimeControl "40/5400+30:1800+30"]

1. e4 {[%emt 0:00:00]} c5 {[%emt 0:00:41]} 2. Nf3 {[%emt 0:00:00]} d6 {[%emt 0:00:07]} 3. Bb5+ {[%emt 0:00:00]} Bd7 {[%emt 0:00:04]} 4. Bxd7+ {[%emt 0:00:00]} Qxd7 {[%emt 0:00:04]} 5. c4 {[%emt 0:00:00]} Nc6 {[%emt 0:00:12]} 6. Nc3 {[%emt 0:02:09]} g6 {[%emt 0:00:06]} 7. d4 {[%emt 0:00:31]} cxd4 {[%emt 0:00:06]} 8. Nxd4 {[%emt 0:00:06]} Bg7 {[%emt 0:00:11]} 9. Be3 {[%emt 0:00:10]} Nf6 {[%emt 0:00:05]} 10. f3 {[%emt 0:00:06]} O-O {[%emt 0:00:14]} 11. O-O {[%emt 0:00:08]} a6 {[%emt 0:00:42]} 12. a4 {[%emt 0:00:45]} e6 {[%emt 0:02:51]} 13. Nxc6 {[%emt 0:00:17]} Qxc6 {[%emt 0:02:17]} 14. Qd3 {[%emt 0:00:37]} Nd7 {[%emt 0:02:04]} 15. b3 {[%emt 0:00:33]} Ne5 {[%emt 0:07:12]} 16. Qd2 {[%emt 0:02:40]} f5 {[%emt 0:03:47]} 17. exf5 {[%emt 0:04:01]} gxf5 {[%emt 0:00:27]} 18. Rad1 {[%emt 0:01:42]} Rad8 {[%emt 0:02:07]} 19. Kh1 {[%emt 0:04:11]} Qe8 {[%emt 0:41:21]} 20. Bd4 {[%emt 0:10:50]} Qh5 {[%emt 0:03:30]} 21. Qe2 {[%emt 0:15:29]} Kf7 {[%emt 0:07:35]} 22. c5 {[%emt 0:04:49]} Qh4 {[%emt 0:04:57]} 23. cxd6 {[%emt 0:17:25]} Nxf3 {[%emt 0:01:35]} 24. Qxf3 {[%emt 0:06:36]} Bxd4 {[%emt 0:00:04]} 25. Qxb7+ {[%emt 0:00:30]} Kg8 {[%emt 0:00:19]} 26. Qe7 {[%emt 0:10:19]} Qf6 {[%emt 0:04:24]} 27. Ne4 {[%emt 0:01:32]} Qg6 {[%emt 0:02:33]} 28. d7 {[%emt 0:09:23]} Be3 {[%emt 0:11:15]} 29. Rf3 {[%emt 0:03:36]} Qf7 {[%emt 0:00:39]} 30. Rg3+ {[%emt 0:01:52]} Kh8 {[%emt 0:00:12]} 31. Qxf7 {[%emt 0:01:25]} Rxf7 {[%emt 0:00:04]} 32. Nd6 {[%emt 0:00:42]} 1-0

[Event "EIWCC 2017"]
[Site "Riga"]
[Date "2017.04.12"]
[Round "2"]
[White "Houska, Jovanka"]
[Black "Pavlidou, Ekaterini"]
[Result "1/2-1/2"]
[ECO "A48"]
[WhiteElo "2397"]
[BlackElo "2180"]
[Annotator "ChessBase"]
[PlyCount "131"]
[EventDate "2017.??.??"]
[EventType "swiss"]
[EventCountry "LAT"]
[SourceTitle "playchess.com"]
[Source "ChessBase"]
[SourceQuality "1"]
[TimeControl "40/5400+30:1800+30"]

1. d4 {[%emt 0:00:00]} Nf6 {[%emt 0:00:15]} 2. Nf3 {[%emt 0:00:00]} g6 {[%emt 0:00:11]} 3. c4 {[%emt 0:00:04]} Bg7 {[%emt 0:00:48]} 4. g3 {[%emt 0:00:04]} d5 {[%emt 0:01:27]} 5. cxd5 {[%emt 0:00:20]} Nxd5 {[%emt 0:00:09]} 6. Bg2 {[%emt 0:00:04]} Nb6 {[%emt 0:00:55]} 7. Nc3 {[%emt 0:02:00]} O-O {[%emt 0:00:52]} 8. O-O {[%emt 0:00:18]} Nc6 {[%emt 0:00:11]} 9. e3 {[%emt 0:00:25]} Re8 {[%emt 0:00:19]} 10. h3 {[%emt 0:00:08]} e5 {[%emt 0:18:42]} 11. d5 {[%emt 0:00:57]} Nb4 {[%emt 0:03:30]} 12. e4 {[%emt 0:01:49]} c6 {[%emt 0:02:21]} 13. a3 {[%emt 0:03:26]} Na6 {[%emt 0:03:37]} 14. Bg5 {[%emt 0:12:16]} f6 {[%emt 0:03:54]} 15. Be3 {[%emt 0:02:04]} Nc4 {[%emt 0:03:05]} 16. Bc1 {[%emt 0:06:52]} cxd5 {[%emt 0:03:42]} 17. Nxd5 {[%emt 0:05:16]} Be6 {[%emt 0:00:44]} 18. Qe2 {[%emt 0:10:38]} Nd6 {[%emt 0:22:09]} 19. Rd1 {[%emt 0:05:28]} Nc7 {[%emt 0:01:35]} 20. Be3 {[%emt 0:05:49]} Nxd5 {[%emt 0:00:14]} 21. exd5 {[%emt 0:00:24]} Bd7 {[%emt 0:00:19]} 22. b3 {[%emt 0:08:02]} Rc8 {[%emt 0:07:17]} 23. Qe1 {[%emt 0:05:34]} Bf5 {[%emt 0:01:36]} 24. Rdc1 {[%emt 0:01:44]} Qd7 {[%emt 0:00:26]} 25. Kh2 {[%emt 0:07:49]} Bf8 {[%emt 0:04:48]} 26. a4 {[%emt 0:03:30]} Bc2 {[%emt 0:04:58]} 27. Nd2 {[%emt 0:00:48]} b5 {[%emt 0:02:43]} 28. axb5 {[%emt 0:07:27]} Nxb5 {[%emt 0:00:07]} 29. Ne4 {[%emt 0:03:53]} Bxe4 {[%emt 0:03:15]} 30. Bxe4 {[%emt 0:00:04]} Nd4 {[%emt 0:01:25]} 31. Rxc8 {[%emt 0:04:01]} Rxc8 {[%emt 0:00:06]} 32. Bxd4 {[%emt 0:00:32]} exd4 {[%emt 0:00:06]} 33. Qd2 {[%emt 0:00:22]} Bc5 {[%emt 0:02:06]} 34. Rc1 {[%emt 0:03:02]} Bb6 {[%emt 0:00:21]} 35. Rc6 {[%emt 0:00:13]} Rxc6 {[%emt 0:01:19]} 36. dxc6 {[%emt 0:00:03]} Qd6 {[%emt 0:00:42]} 37. Qd3 {[%emt 0:01:02]} Kg7 {[%emt 0:00:47]} 38. h4 {[%emt 0:00:57]} f5 {[%emt 0:03:13]} 39. Bf3 {[%emt 0:00:33]} Qc5 {[%emt 0:02:54]} 40. Kg2 {[%emt 0:00:00]} Kf6 {[%emt 0:00:52]} 41. Qd2 {[%emt 0:08:56]} Kg7 {[%emt 0:10:22]} 42. h5 {[%emt 0:10:08]} h6 {[%emt 0:00:54]} 43. hxg6 {[%emt 0:00:19]} Kxg6 {[%emt 0:00:22]} 44. Qe2 {[%emt 0:04:24]} Kf6 {[%emt 0:00:50]} 45. Qd2 {[%emt 0:03:42]} Kg7 {[%emt 0:00:37]} 46. b4 {[%emt 0:02:44]} Qd6 {[%emt 0:02:36]} 47. Qd3 {[%emt 0:00:21]} Kf6 {[%emt 0:03:36]} 48. b5 {[%emt 0:00:08]} Qe5 {[%emt 0:01:31]} 49. Qc4 {[%emt 0:00:44]} Kg7 {[%emt 0:00:10]} 50. Bh5 {[%emt 0:02:25]} Qe4+ {[%emt 0:01:35]} 51. Kh2 {[%emt 0:01:07]} Qe7 {[%emt 0:00:10]} 52. Qd5 {[%emt 0:00:46]} Kf6 {[%emt 0:00:17]} 53. Qg8 {[%emt 0:01:25]} Ke5 {[%emt 0:07:12]} 54. Qh8+ {[%emt 0:00:39]} Kd5 {[%emt 0:02:21]} 55. Qxh6 {[%emt 0:00:25]} Kc5 {[%emt 0:00:46]} 56. Qg6 {[%emt 0:01:01]} Kxb5 {[%emt 0:00:49]} 57. Qxf5+ {[%emt 0:00:31]} Kxc6 {[%emt 0:00:10]} 58. Bf3+ {[%emt 0:00:07]} Kc7 {[%emt 0:00:14]} 59. g4 {[%emt 0:00:48]} Qd6+ {[%emt 0:00:13]} 60. Kg2 {[%emt 0:00:03]} d3 {[%emt 0:00:52]} 61. Qf7+ {[%emt 0:00:54]} Kd8 {[%emt 0:00:39]} 62. g5 {[%emt 0:00:39]} d2 {[%emt 0:03:07]} 63. Bd1 {[%emt 0:00:38]} Bd4 {[%emt 0:01:02]} 64. g6 {[%emt 0:00:26]} Qf6 {[%emt 0:00:25]} 65. Qxf6+ {[%emt 0:00:14]} Bxf6 {[%emt 0:00:05]} 66. Kf3 {[%emt 0:00:02]} 1/2-1/2

[Event "EIWCC 2017"]
[Site "Riga"]
[Date "2017.04.12"]
[Round "2"]
[White "Zimina, Olga"]
[Black "Khomeriki, Nino"]
[Result "1/2-1/2"]
[ECO "A09"]
[WhiteElo "2395"]
[BlackElo "2308"]
[Annotator "ChessBase"]
[PlyCount "95"]
[EventDate "2017.??.??"]
[EventType "swiss"]
[EventCountry "LAT"]
[SourceTitle "playchess.com"]
[Source "ChessBase"]
[SourceQuality "1"]
[TimeControl "40/5400+30:1800+30"]

1. Nf3 {[%emt 0:00:00]} d5 {[%emt 0:00:08]} 2. c4 {[%emt 0:00:00]} d4 {[%emt 0:00:06]} 3. g3 {[%emt 0:00:00]} Nc6 {[%emt 0:00:12]} 4. Bg2 {[%emt 0:00:00]} e5 {[%emt 0:00:56]} 5. d3 {[%emt 0:00:02]} Nf6 {[%emt 0:00:45]} 6. O-O {[%emt 0:00:05]} Bg4 {[%emt 0:00:12]} 7. h3 {[%emt 0:11:29]} Bf5 {[%emt 0:00:23]} 8. a3 {[%emt 0:09:00]} a5 {[%emt 0:00:45]} 9. Bg5 {[%emt 0:03:16]} Be7 {[%emt 0:10:29]} 10. Nbd2 {[%emt 0:02:08]} Nd7 {[%emt 0:08:51]} 11. Bxe7 {[%emt 0:00:21]} Qxe7 {[%emt 0:00:07]} 12. Ne1 {[%emt 0:00:21]} O-O {[%emt 0:01:43]} 13. Nc2 {[%emt 0:06:23]} a4 {[%emt 0:07:47]} 14. Re1 {[%emt 0:00:34]} Qe6 {[%emt 0:06:04]} 15. Kh2 {[%emt 0:05:13]} Qh6 {[%emt 0:01:48]} 16. Nb4 {[%emt 0:09:30]} Ne7 {[%emt 0:06:41]} 17. Nd5 {[%emt 0:16:37]} Nxd5 {[%emt 0:01:05]} 18. cxd5 {[%emt 0:00:02]} Nf6 {[%emt 0:21:23]} 19. Nf3 {[%emt 0:00:45]} Rfe8 {[%emt 0:06:28]} 20. Nh4 {[%emt 0:02:13]} Bc8 {[%emt 0:07:55]} 21. Rc1 {[%emt 0:04:28]} g5 {[%emt 0:04:47]} 22. Qd2 {[%emt 0:00:28]} e4 {[%emt 0:04:17]} 23. dxe4 {[%emt 0:05:51]} Nxe4 {[%emt 0:00:06]} 24. Bxe4 {[%emt 0:03:15]} Rxe4 {[%emt 0:00:05]} 25. Rxc7 {[%emt 0:00:22]} Bxh3 {[%emt 0:03:14]} 26. Nf3 {[%emt 0:11:19]} Be6+ {[%emt 0:04:48]} 27. Kg1 {[%emt 0:00:02]} Bxd5 {[%emt 0:00:08]} 28. Qxg5+ {[%emt 0:02:26]} Qxg5 {[%emt 0:00:05]} 29. Nxg5 {[%emt 0:00:03]} Re5 {[%emt 0:01:52]} 30. f4 {[%emt 0:02:14]} Re3 {[%emt 0:00:04]} 31. Kf2 {[%emt 0:01:24]} h6 {[%emt 0:02:10]} 32. Nf3 {[%emt 0:04:23]} Bxf3 {[%emt 0:00:09]} 33. exf3 {[%emt 0:00:02]} Rb3 {[%emt 0:00:05]} 34. Re2 {[%emt 0:01:57]} Rd8 {[%emt 0:01:09]} 35. f5 {[%emt 0:00:28]} Rd6 {[%emt 0:00:37]} 36. Rd2 {[%emt 0:00:31]} b5 {[%emt 0:00:31]} 37. g4 {[%emt 0:00:07]} Kg7 {[%emt 0:00:11]} 38. Kg3 {[%emt 0:00:46]} Kf6 {[%emt 0:00:34]} 39. Kf4 {[%emt 0:00:23]} b4 {[%emt 0:00:44]} 40. Re2 {[%emt 0:00:00]} Kg7 {[%emt 0:00:35]} 41. Ree7 {[%emt 0:16:36]} Rf6 {[%emt 0:00:57]} 42. Red7 {[%emt 0:02:50]} bxa3 {[%emt 0:15:55]} 43. bxa3 {[%emt 0:01:22]} d3 {[%emt 0:00:04]} 44. Ra7 {[%emt 0:00:22]} Rxa3 {[%emt 0:00:10]} 45. Ke4 {[%emt 0:00:14]} d2 {[%emt 0:03:14]} 46. Rxd2 {[%emt 0:00:58]} Rb6 {[%emt 0:00:13]} 47. Rd4 {[%emt 0:00:47]} Rbb3 {[%emt 0:00:29]} 48. Raxa4 {[%emt 0:04:31]} 1/2-1/2

[Event "EIWCC 2017"]
[Site "Riga"]
[Date "2017.04.12"]
[Round "2"]
[White "Bulmaga, Irina"]
[Black "Utiatskaja, Irina"]
[Result "0-1"]
[ECO "B90"]
[WhiteElo "2394"]
[BlackElo "2152"]
[Annotator "ChessBase"]
[PlyCount "94"]
[EventDate "2017.??.??"]
[EventType "swiss"]
[EventCountry "LAT"]
[SourceTitle "playchess.com"]
[Source "ChessBase"]
[SourceQuality "1"]
[TimeControl "40/5400+30:1800+30"]

1. e4 {[%emt 0:00:00]} c5 {[%emt 0:00:06]} 2. Nf3 {[%emt 0:00:00]} d6 {[%emt 0:00:11]} 3. d4 {[%emt 0:00:00]} cxd4 {[%emt 0:00:04]} 4. Nxd4 {[%emt 0:00:00]} Nf6 {[%emt 0:00:05]} 5. Nc3 {[%emt 0:00:04]} a6 {[%emt 0:00:10]} 6. a4 {[%emt 0:00:08]} e6 {[%emt 0:01:34]} 7. Be3 {[%emt 0:00:26]} Be7 {[%emt 0:07:11]} 8. Be2 {[%emt 0:00:20]} O-O {[%emt 0:00:26]} 9. Qd2 {[%emt 0:06:04]} Nc6 {[%emt 0:02:56]} 10. O-O {[%emt 0:03:08]} Qc7 {[%emt 0:04:02]} 11. f4 {[%emt 0:03:48]} Bd7 {[%emt 0:11:01]} 12. Nb3 {[%emt 0:04:23]} b6 {[%emt 0:01:03]} 13. Bf3 {[%emt 0:03:15]} Rab8 {[%emt 0:01:19]} 14. g4 {[%emt 0:05:54]} Bc8 {[%emt 0:10:04]} 15. g5 {[%emt 0:02:23]} Nd7 {[%emt 0:00:03]} 16. Bg2 {[%emt 0:03:01]} Re8 {[%emt 0:00:47]} 17. Rad1 {[%emt 0:00:46]} Bf8 {[%emt 0:09:01]} 18. Rf3 {[%emt 0:04:09]} Na5 {[%emt 0:04:15]} 19. Nxa5 {[%emt 0:03:26]} bxa5 {[%emt 0:00:04]} 20. Bd4 {[%emt 0:05:51]} Nb6 {[%emt 0:08:36]} 21. Qf2 {[%emt 0:04:30]} e5 {[%emt 0:01:27]} 22. Bxb6 {[%emt 0:01:30]} Qxb6 {[%emt 0:00:12]} 23. f5 {[%emt 0:12:49]} Qxf2+ {[%emt 0:02:58]} 24. Rxf2 {[%emt 0:02:32]} Rxb2 {[%emt 0:09:52]} 25. Nd5 {[%emt 0:01:40]} Bb7 {[%emt 0:00:23]} 26. f6 {[%emt 0:03:42]} Bxd5 {[%emt 0:00:36]} 27. Rxd5 {[%emt 0:02:48]} Rc8 {[%emt 0:01:39]} 28. Rxa5 {[%emt 0:11:05]} d5 {[%emt 0:03:08]} 29. Bh3 {[%emt 0:04:46]} Rc3 {[%emt 0:02:07]} 30. Kg2 {[%emt 0:00:37]} Rcxc2 {[%emt 0:05:53]} 31. Rxc2 {[%emt 0:00:03]} Rxc2+ {[%emt 0:00:04]} 32. Kg3 {[%emt 0:00:09]} dxe4 {[%emt 0:05:45]} 33. Rxa6 {[%emt 0:02:27]} e3 {[%emt 0:00:33]} 34. Ra8 {[%emt 0:01:42]} Rxh2 {[%emt 0:01:16]} 35. Kxh2 {[%emt 0:03:42]} e2 {[%emt 0:00:09]} 36. a5 {[%emt 0:00:10]} e1=Q {[%emt 0:00:06]} 37. a6 {[%emt 0:00:05]} Qf2+ {[%emt 0:03:04]} 38. Bg2 {[%emt 0:00:02]} gxf6 {[%emt 0:02:39]} 39. gxf6 {[%emt 0:02:03]} h5 {[%emt 0:00:29]} 40. a7 {[%emt 0:00:00]} Kh7 {[%emt 0:00:36]} 41. Rxf8 {[%emt 0:04:13]} Qxa7 {[%emt 0:00:28]} 42. Ra8 {[%emt 0:01:48]} Qd4 {[%emt 0:00:54]} 43. Ra2 {[%emt 0:00:49]} Kg6 {[%emt 0:00:37]} 44. Re2 {[%emt 0:00:12]} Kxf6 {[%emt 0:00:31]} 45. Re4 {[%emt 0:00:13]} Qb2 {[%emt 0:00:09]} 46. Kg3 {[%emt 0:00:18]} Kg5 {[%emt 0:00:23]} 47. Bf3 {[%emt 0:00:24]} Qc3 {[%emt 0:01:03]} 0-1